[Event "Polish University-ch Open 2024"]
[Site "Lublin"]
[Date "2024.02.23"]
[Round "2.5"]
[White "Rosicki, Marcin"]
[Black "Niedbala, Bartlomiej"]
[Result "0-1"]
[ECO "B02"]
[WhiteElo "2032"]
[BlackElo "2382"]
[Annotator "TA"]
[PlyCount "46"]
[EventDate "2024.02.22"]
[EventType "swiss"]
[EventCountry "POL"]
[SourceTitle "playchess.com"]
[Source "ChessBase"]
[SourceQuality "1"]
[TimeControl "600+3"]

{[%evp 11,46,36,31,5,8,18,27,0,0,0,0,-14,0,0,4,-83,-71,-97,-75,-112,-113,-160,-172,-162,-160,-197,-191,-211,-214,-212,-200,-379,-341,-386,-385,-356,-310]} 1. e4 {[%emt 0:00:00]} Nf6 {[%emt 0:00:01]} 2. Nc3 {[%emt 0:00:02]} d5 {[%emt 0:00:08]} 3. exd5 {[%emt 0:00:20]} Nxd5 {[%emt 0:00:02]} 4. Bc4 {[%emt 0:00:01]} Nb6 {[%emt 0:00:14]} 5. Bb3 {[%emt 0:00:02]} c5 {[%emt 0:00:24]} 6. d3 {[%emt 0:00:18]} Nc6 {[%emt 0:00:03]} 7. a4 {[%emt 0:00:59]} Nd4 {[%emt 0:00:53]} 8. Ba2 {[%emt 0:01:12]} Bf5 {[%emt 0:00:23]} 9. Nf3 {[%emt 0:01:33] White has an edge.} e6 $1 {[%emt 0:00:26]} 10. Nxd4 {[%emt 0:01:19]} cxd4 {[%emt 0:00:04]} 11. Ne4 {[%emt 0:00:03]} Be7 {[%emt 0:00:44]} 12. O-O {[%emt 0:00:10]} O-O {[%emt 0:00:05]} 13. Bf4 {[%emt 0:00:16]} (13. a5 $11 {keeps the balance.} Nd7 14. Bf4) 13... Nxa4 $17 {[%emt 0:00:33]} 14. Bb3 {[%emt 0:02:49]} Nb6 {[%emt 0:00:18]} ({Stronger than} 14... Nxb2 15. Qb1 $14) 15. Qd2 {[%emt 0:00:20] Against a5} Nd5 {[%emt 0:00:21]} 16. Bxd5 {[%emt 0:00:06]} ({Better is} 16. Ra4) 16... Qxd5 {[%emt 0:00:10]} 17. Ra5 {[%emt 0:00:05]} Qc6 {[%emt 0:00:10]} 18. Be5 {[%emt 0:00:42]} Rfd8 {[%emt 0:00:44][%cal Of7f6]} 19. Ng3 {[%emt 0:00:02]} Bg6 {[%emt 0:00:04] [#] And now ...b6 would win.} 20. Ne2 {[%emt 0:00:04]} Bc5 {[%emt 0:00:58]} 21. Qf4 $2 {[%emt 0:00:07]} (21. Raa1 {might work better.}) 21... Bb6 {[%emt 0:00:15]} 22. Raa1 {[%emt 0:00:23]} f6 {[%emt 0:00:34]} ({Resist} 22... Qxc2 23. Nxd4 Qc5 (23... Qxb2 24. Nxe6 $14) (23... Qxd3 $2 24. Nf3 $19) 24. Nb3 $19) 23. Nxd4 {[%emt 0:00:09]} Qd7 {[%emt 0:00:38] Weighted Error Value: White=0.35/Black=0.07 (flawless) .  Mistake:       	White=3     	---        Inaccurate:     	White=3     	---        OK:         	White=5     	Black=6      Strong:       	---       	Black=1} 0-1

[Event "Polish University-ch Open 2024"]
[Site "Lublin"]
[Date "2024.02.23"]
[Round "2.6"]
[White "Baum, Jonasz"]
[Black "Iwanczuk, Krzysztof"]
[Result "1-0"]
[ECO "C78"]
[WhiteElo "2400"]
[BlackElo "2014"]
[Annotator "TA"]
[PlyCount "74"]
[EventDate "2024.02.22"]
[EventType "swiss"]
[EventCountry "POL"]
[SourceTitle "playchess.com"]
[Source "ChessBase"]
[SourceQuality "1"]
[TimeControl "600+3"]

{[%evp 17,74,41,48,11,10,5,30,14,10,-35,6,12,15,23,48,45,46,49,53,46,168,0,0,0,0,-27,-41,-29,6,-80,20,-2,0,-190,-180,-177,-100,-104,-105,-101,-4,-4,0,0,0,0,0,-67,285,283,283,281,269,260,203,201,607,275,227]} 1. e4 {[%emt 0:00:03]} e5 {[%emt 0:00:10]} 2. Nf3 {[%emt 0:00:02]} Nc6 {[%emt 0:00:01]} 3. Bb5 {[%emt 0:00:02][%cal Bf1b5,Bb5a4,Ba4b3][%mdl 32]} a6 {[%emt 0:00:10]} 4. Ba4 {[%emt 0:00:01]} Nf6 {[%emt 0:00:02]} 5. O-O {[%emt 0:00:01]} b5 {[%emt 0:00:00]} 6. Bb3 {[%emt 0:00:01]} Bc5 {[%emt 0:00:01]} 7. a4 {[%emt 0:00:02]} Rb8 {[%emt 0:00:02]} 8. c3 {[%emt 0:00:01]} d6 {[%emt 0:00:01]} 9. d4 {[%emt 0:00:01]} Bb6 {[%emt 0:00:01]} 10. a5 {[%emt 0:00:00]} Ba7 {[%emt 0:00:01]} 11. h3 {[%emt 0:01:40]} Bb7 {[%emt 0:00:01]} 12. Be3 {[%emt 0:00:16] Threatening d5. White has an edge.} Nxe4 {[%emt 0:00:32]} 13. Nbd2 {[%emt 0:00:15]} Nxd2 {[%emt 0:01:14]} 14. Qxd2 {[%emt 0:00:02]} O-O {[%emt 0:01:53]} 15. dxe5 {[%emt 0:00:21]} Bxe3 {[%emt 0:00:44]} 16. Qxe3 {[%emt 0:00:02] Hoping for e6.} Nxe5 {[%emt 0:00:36]} 17. Nxe5 {[%emt 0:00:02]} dxe5 {[%emt 0:00:02]} 18. Qxe5 {[%emt 0:00:23]} Qd2 {[%emt 0:01:49]} (18... Re8 $14 19. Qf4 Re7) 19. Rab1 $2 {[%emt 0:01:49] [#]} ({White should play} 19. Qxc7 $18 b4 20. Ra4 bxc3 21. Bxf7+ (21. Qxc3 Qxc3 22. bxc3 Bxg2 $11) (21. bxc3 Qd8 $18) 21... Kh8 22. bxc3 (22. Qxc3 $2 Qxc3 23. bxc3 Rxf7 $19)) 19... Rbe8 $11 {[%emt 0:00:33]} 20. Qxc7 {[%emt 0:00:05]} Be4 $40 {[%emt 0:00:03][%mdl 128] White needs to defend precisely.} 21. Ra1 {[%emt 0:02:04]} Qxb2 {[%emt 0:00:22]} 22. Ba2 {[%emt 0:00:01]} Rc8 {[%emt 0:01:51]} 23. Qa7 {[%emt 0:01:16]} (23. Bxf7+ $1 $11 {keeps the balance.} Kh8 24. Qd7) 23... Rc6 {[%emt 0:00:27]} (23... Rxc3 $17 {[%cal Oc3g3] White must now prevent ...Rg3!} 24. Qe7 Bg6) 24. Rfd1 {[%emt 0:00:17][%cal Oa7f7] [#] White threatens Qxf7+! and mate.} h6 {[%emt 0:00:03][%cal Oc6g6] ...Rg6! is the strong threat.} (24... Qxc3 25. Qxf7+ Rxf7 26. Rd8#) 25. Re1 $2 {[%emt 0:00:50]} (25. Bxf7+ $11 Rxf7 26. Rd8+ Kh7 27. Qxf7 Qxa1+ 28. Kh2 Bxg2 (28... Qxa5 $2 {perishes.} 29. Qg8+ Kg6 30. Qe8+ Kf6 31. Rd7 $18) 29. Qg8+ Kg6 30. Kxg2 Qxc3 31. Qe8+ Kh7 32. Qg8+ Kg6 33. Qe8+ Kh7 34. h4) 25... Rg6 {[%emt 0:00:03]} 26. g4 {[%emt 0:00:30]} Qxc3 {[%emt 0:00:02]} (26... h5 $19 27. Qd4 Ba8) 27. Qe3 $17 {[%emt 0:00:04]} Qxe3 {[%emt 0:00:26]} (27... Qxa5 $2 {too greedy.} 28. Bxf7+ (28. Qxe4 Qb6 $18) 28... Rxf7 29. Rxa5 $18) 28. Rxe3 {[%emt 0:00:01]} Bf5 {[%emt 0:00:01]} ({Black should try} 28... Bc6 $17 29. Rc1 Rd8) 29. Rc1 $11 {[%emt 0:00:29]} h5 {[%emt 0:00:06]} 30. f3 {[%emt 0:00:02]} hxg4 {[%emt 0:00:03]} 31. hxg4 {[%emt 0:00:05]} Rd8 {[%emt 0:00:06]} 32. Rce1 {[%emt 0:00:15]} ({Better is} 32. Rc7 $11 Rd1+ 33. Kf2 Rd2+ 34. Re2 Rxe2+ 35. Kxe2) 32... Rd2 $2 {[%emt 0:00:07][%mdl 8192]} (32... Kf8 $1 $15) 33. Re8+ $18 {[%emt 0:00:06]} Kh7 {[%emt 0:00:00]} 34. Bxf7 {[%emt 0:00:01]} Rf6 {[%emt 0:00:06]} 35. Bg8+ {[%emt 0:00:01]} Kh6 {[%emt 0:00:02]} 36. gxf5 {[%emt 0:00:02]} Kg5 $2 {[%emt 0:00:05]} (36... Rxf5 37. R1e2 Rxe2 38. Rxe2 Rxf3) 37. R8e6 {[%emt 0:00:21]} (37. Be6 $142 Kf4 38. Rg8) 37... Rxf5 {[%emt 0:00:08] White used his chance.   Weighted Error Value: White=0.52/Black=0.52.  Loses game:     	White=1     	Black=1      Missed win:     	White=1     	---        Mistake:       	White=3     	Black=5      Inaccurate:     	White=2     	Black=2      OK:         	White=5     	Black=8      Best:        	White=4     	Black=2} 1-0

[Event "Polish University-ch Open 2024"]
[Site "Lublin"]
[Date "2024.02.23"]
[Round "2.7"]
[White "Choina, Michal"]
[Black "Mis, Mieszko"]
[Result "0-1"]
[ECO "B07"]
[WhiteElo "1914"]
[BlackElo "2325"]
[Annotator "RC"]
[PlyCount "72"]
[EventDate "2024.02.22"]
[EventType "swiss"]
[EventCountry "POL"]
[SourceTitle "playchess.com"]
[Source "ChessBase"]
[SourceQuality "1"]
[TimeControl "600+3"]

1. e4 {[%emt 0:00:01]} d6 {[%emt 0:00:01]} 2. d4 {[%emt 0:00:02]} Nf6 {[%emt 0:00:02]} 3. Nc3 {[%emt 0:00:03]} c6 {[%emt 0:00:01]} 4. f4 {[%emt 0:00:09]} Qa5 {[%emt 0:00:03]} 5. Bd2 {[%emt 0:00:08]} Qb6 {[%emt 0:00:26]} 6. Nf3 {[%emt 0:00:24]} Bg4 {[%emt 0:00:09]} 7. Na4 {[%emt 0:00:44]} Qc7 {[%emt 0:00:08]} 8. e5 {[%emt 0:00:18]} Ne4 {[%emt 0:00:19]} 9. Bd3 {[%emt 0:00:55]} Nxd2 {[%emt 0:00:08]} 10. Qxd2 {[%emt 0:00:02]} Bxf3 {[%emt 0:00:07]} 11. gxf3 {[%emt 0:00:01]} e6 {[%emt 0:00:05]} 12. Rg1 {[%emt 0:00:52]} g6 {[%emt 0:00:04]} 13. b3 {[%emt 0:01:05]} Bh6 {[%emt 0:00:29]} 14. Rg4 {[%emt 0:00:22]} Nd7 {[%emt 0:00:26]} 15. Rh4 {[%emt 0:00:16]} Bg7 {[%emt 0:00:04]} 16. Nc3 {[%emt 0:01:24]} dxe5 {[%emt 0:00:10]} 17. fxe5 {[%emt 0:00:35]} Nxe5 {[%emt 0:00:08]} 18. dxe5 {[%emt 0:01:40]} Qxe5+ {[%emt 0:00:02]} 19. Re4 {[%emt 0:00:26]} Qxc3 {[%emt 0:00:02]} 20. Rd1 {[%emt 0:00:03]} Qc5 {[%emt 0:00:10]} 21. Qf2 {[%emt 0:00:13]} Qa5+ {[%emt 0:00:14]} 22. Kf1 {[%emt 0:00:06]} O-O-O {[%emt 0:00:11]} 23. Ra4 {[%emt 0:00:08]} Qb6 {[%emt 0:00:00]} 24. Qg3 {[%emt 0:00:38]} Rd7 {[%emt 0:00:20]} 25. a3 {[%emt 0:00:05]} Rhd8 {[%emt 0:00:05]} 26. Rb4 {[%emt 0:00:01]} Qc7 {[%emt 0:00:04]} 27. Qh4 {[%emt 0:00:12]} h5 {[%emt 0:00:06]} 28. Ra4 {[%emt 0:00:11]} a6 {[%emt 0:00:07]} 29. Ke2 {[%emt 0:00:08]} Rd4 {[%emt 0:00:05]} 30. Rxd4 {[%emt 0:00:03]} Rxd4 {[%emt 0:00:01]} 31. Qf2 {[%emt 0:00:05]} Qe5+ {[%emt 0:00:02]} 32. Kf1 {[%emt 0:00:03]} Qd6 {[%emt 0:00:04]} 33. Re1 {[%emt 0:00:06]} Be5 {[%emt 0:00:06]} 34. Kg1 {[%emt 0:00:02]} Rxd3 {[%emt 0:00:07]} 35. cxd3 {[%emt 0:00:01]} Bd4 {[%emt 0:00:01]} 36. Re3 {[%emt 0:00:01]} Qc5 {[%emt 0:00:08]} 0-1

[Event "Polish University-ch Open 2024"]
[Site "Lublin"]
[Date "2024.02.23"]
[Round "2.8"]
[White "Kowalski, Igor"]
[Black "Kucharski, Bartlomiej"]
[Result "1-0"]
[ECO "E73"]
[WhiteElo "2372"]
[BlackElo "1997"]
[Annotator "RC"]
[PlyCount "101"]
[EventDate "2024.02.22"]
[EventType "swiss"]
[EventCountry "POL"]
[SourceTitle "playchess.com"]
[Source "ChessBase"]
[SourceQuality "1"]
[TimeControl "600+3"]

1. d4 {[%emt 0:00:01]} Nf6 {[%emt 0:00:07]} 2. c4 {[%emt 0:00:02]} g6 {[%emt 0:00:01]} 3. Nc3 {[%emt 0:00:01]} Bg7 {[%emt 0:00:02]} 4. e4 {[%emt 0:00:01]} d6 {[%emt 0:00:01]} 5. Be2 {[%emt 0:00:02]} O-O {[%emt 0:00:02]} 6. Be3 {[%emt 0:00:01]} Nc6 {[%emt 0:00:06]} 7. d5 {[%emt 0:00:10]} Nb8 {[%emt 0:00:03]} 8. g4 {[%emt 0:00:08]} c6 {[%emt 0:01:05]} 9. g5 {[%emt 0:00:03]} Ne8 {[%emt 0:00:08]} 10. h4 {[%emt 0:00:03]} f5 {[%emt 0:00:40]} 11. gxf6 {[%emt 0:00:08]} exf6 {[%emt 0:00:11]} 12. h5 {[%emt 0:00:19]} f5 {[%emt 0:00:30]} 13. hxg6 {[%emt 0:00:02]} hxg6 {[%emt 0:00:01]} 14. Qd2 {[%emt 0:00:27]} Qf6 {[%emt 0:00:35]} 15. exf5 {[%emt 0:00:33]} Bxf5 {[%emt 0:00:10]} 16. O-O-O {[%emt 0:00:06]} Nd7 {[%emt 0:01:33]} 17. Nf3 {[%emt 0:00:14]} c5 {[%emt 0:00:26]} 18. Ng5 {[%emt 0:00:10]} Nc7 {[%emt 0:00:37]} 19. Nh7 {[%emt 0:00:03]} Qe7 {[%emt 0:00:02]} 20. Nxf8 {[%emt 0:00:07]} Rxf8 {[%emt 0:00:12]} 21. Bh6 {[%emt 0:00:08]} a6 {[%emt 0:00:51]} 22. Bxg7 {[%emt 0:00:07]} Qxg7 {[%emt 0:00:02]} 23. Rdg1 {[%emt 0:00:47]} b5 {[%emt 0:00:11]} 24. f4 {[%emt 0:01:42]} Nb6 {[%emt 0:00:47]} 25. Bd3 {[%emt 0:01:42]} Nxc4 {[%emt 0:00:14]} 26. Bxc4 {[%emt 0:00:15]} bxc4 {[%emt 0:00:03]} 27. Re1 {[%emt 0:00:19]} Nb5 {[%emt 0:00:36]} 28. Nxb5 {[%emt 0:00:30]} axb5 {[%emt 0:00:02]} 29. Qc3 {[%emt 0:00:19]} Qxc3+ {[%emt 0:01:15]} 30. bxc3 {[%emt 0:00:01]} b4 {[%emt 0:00:02]} 31. Re7 {[%emt 0:00:29]} Rf7 {[%emt 0:00:11]} 32. Rh8+ {[%emt 0:00:35]} Kg7 {[%emt 0:00:05]} 33. Rxf7+ {[%emt 0:00:43]} Kxf7 {[%emt 0:00:02]} 34. cxb4 {[%emt 0:00:01]} cxb4 {[%emt 0:00:02]} 35. Rb8 {[%emt 0:00:02]} b3 {[%emt 0:00:11]} 36. axb3 {[%emt 0:00:35]} cxb3 {[%emt 0:00:01]} 37. Rxb3 {[%emt 0:00:05]} Be4 {[%emt 0:00:04]} 38. Rb5 {[%emt 0:00:01]} Kf6 {[%emt 0:00:02]} 39. Kd2 {[%emt 0:00:01]} Kf5 {[%emt 0:00:02]} 40. Ke3 {[%emt 0:00:01]} Bg2 {[%emt 0:00:04]} 41. Kd4 {[%emt 0:00:14]} Kxf4 {[%emt 0:00:15]} 42. Rb6 {[%emt 0:00:01]} g5 {[%emt 0:00:01]} 43. Rxd6 {[%emt 0:00:01]} g4 {[%emt 0:00:08]} 44. Rf6+ {[%emt 0:00:09]} Kg5 {[%emt 0:00:06]} 45. Rf8 {[%emt 0:00:02]} g3 {[%emt 0:00:06]} 46. d6 {[%emt 0:00:03]} Bc6 {[%emt 0:00:07]} 47. Ke3 {[%emt 0:00:09]} g2 {[%emt 0:00:08]} 48. Kf2 {[%emt 0:00:02]} Kg6 {[%emt 0:00:02]} 49. Rc8 {[%emt 0:00:05]} Bb5 {[%emt 0:00:08]} 50. Rc5 {[%emt 0:00:15]} Bd7 {[%emt 0:00:05]} 51. Rc7 {[%emt 0:00:02]} 1-0

[Event "Polish University-ch Open 2024"]
[Site "Lublin"]
[Date "2024.02.23"]
[Round "2.9"]
[White "Majdanski, Maksymilian"]
[Black "Szustakowski, Antoni"]
[Result "0-1"]
[ECO "D24"]
[WhiteElo "2002"]
[BlackElo "2354"]
[Annotator "TA"]
[PlyCount "103"]
[EventDate "2024.02.22"]
[EventType "swiss"]
[EventCountry "POL"]
[SourceTitle "playchess.com"]
[Source "ChessBase"]
[SourceQuality "1"]
[TimeControl "600+3"]

{[%evp 23,103,0,4,0,180,168,161,70,56,29,28,27,9,0,46,0,0,0,0,-25,0,-70,-77,-148,-25,-40,-31,-78,-75,-90,-33,-67,-21,-51,-24,-43,-31,-51,-26,-39,-32,-43,0,0,0,0,0,0,0,0,0,0,0,0,0,0,0,-120,0,-64,-69,-64,-63,-49,-63,-80,0,-163,0,0,0,-59,0,0,0,0,0,-29982,-29980,-29986,-29987,-29988]} 1. d4 {[%emt 0:00:01]} Nf6 {[%emt 0:00:03]} 2. c4 {[%emt 0:00:03]} e6 {[%emt 0:00:04]} 3. Nf3 {[%emt 0:00:02]} d5 {[%emt 0:00:03]} 4. Nc3 {[%emt 0:00:01]} dxc4 {[%emt 0:00:07]} 5. e4 {[%emt 0:00:08]} Bb4 {[%emt 0:00:03]} 6. Bxc4 {[%emt 0:00:05]} Nxe4 {[%emt 0:00:02]} 7. O-O {[%emt 0:00:04]} Nf6 {[%emt 0:00:02]} 8. Qa4+ {[%emt 0:01:15]} Nc6 {[%emt 0:00:01]} 9. Bg5 {[%emt 0:00:01]} O-O {[%emt 0:01:22]} 10. Bb5 {[%emt 0:00:50]} a5 {[%emt 0:00:31]} 11. Bxc6 {[%emt 0:00:41]} bxc6 {[%emt 0:00:01]} 12. Ne4 {[%emt 0:01:23]} Ba6 {[%emt 0:04:18]} 13. Rfc1 {[%emt 0:00:01]} Rb8 $2 {[%emt 0:00:01] [#]} (13... Bd3 $11 {and Black stays safe.} 14. Nxf6+ gxf6) 14. Ne5 $1 $18 {[%emt 0:02:16]} (14. Qxc6 Bb7 15. Bxf6 gxf6 $15) (14. Rxc6 $2 Bb5 15. Qc2 Qd5 (15... Bxc6 $2 16. Qxc6 Be7 17. Nxf6+ Bxf6 18. Bxf6 $19) 16. Bxf6 Qxc6 $19 (16... Bxc6 $2 17. Neg5 $19)) (14. Nxf6+ $6 gxf6 15. Bh6 Re8 $14) 14... Bb5 {[%emt 0:01:07]} 15. Qd1 {[%emt 0:00:14]} (15. Qc2 $18 {Black must now prevent a4.} Be7 16. a4 Qxd4 17. Bxf6 gxf6 18. Nf3 (18. Nxc6 $2 Bxc6 19. Qxc6 Rfc8 $19)) 15... Be7 $14 {[%emt 0:00:03]} 16. Nxf6+ {[%emt 0:00:29]} Bxf6 {[%emt 0:00:16]} (16... gxf6 $6 17. Bh6 fxe5 18. Qg4+ $16) 17. Bxf6 {[%emt 0:00:05]} (17. Nxc6 $2 Bxc6 18. Bxf6 Qxf6 $19) 17... gxf6 {[%emt 0:00:01]} 18. Nf3 {[%emt 0:02:10]} Kh8 {[%emt 0:00:25]} (18... a4 $11) 19. Rc5 {[%emt 0:00:07]} (19. a4 $14 Ba6 20. Qd2) 19... a4 $1 $11 {[%emt 0:00:34]} 20. Qd2 {[%emt 0:00:28]} Rg8 {[%emt 0:00:13]} 21. Qf4 {[%emt 0:00:02]} Rg6 {[%emt 0:00:27]} 22. Nh4 {[%emt 0:00:08]} (22. g3 $11) 22... Rg5 $1 $15 {[%emt 0:00:44]} 23. Rac1 {[%emt 0:00:13] [#]} ({Better is} 23. h3) 23... Qe7 {[%emt 0:00:22]} (23... Rxc5 $1 $17 24. dxc5 Qe7) 24. g3 {[%emt 0:00:12]} Rd8 {[%emt 0:00:11]} 25. a3 {[%emt 0:00:05]} (25. R5c3 $15) 25... Rgd5 $17 {[%emt 0:00:06]} 26. Nf3 {[%emt 0:00:02]} Kg7 {[%emt 0:00:06]} (26... Rxc5 $17 27. Rxc5 e5) 27. h4 {[%emt 0:00:06]} Kh8 {[%emt 0:00:02]} (27... h5 $15 {might be stronger.}) 28. Kg2 {[%emt 0:00:02]} R8d6 {[%emt 0:00:03]} 29. R1c3 {[%emt 0:00:05]} Rxc5 {[%emt 0:00:02]} 30. Rxc5 {[%emt 0:00:01]} Rd5 {[%emt 0:00:02]} 31. Rxd5 {[%emt 0:00:01]} cxd5 {[%emt 0:00:01]} 32. h5 {[%emt 0:00:07]} Bd3 {[%emt 0:00:03]} 33. h6 {[%emt 0:00:01]} Be4 {[%emt 0:00:04]} 34. Kh2 {[%emt 0:00:03]} Bxf3 {[%emt 0:00:04]} 35. Qxf3 {[%emt 0:00:01]} f5 $1 {[%emt 0:00:05]} 36. Qf4 {[%emt 0:00:08]} f6 {[%emt 0:00:02]} 37. Kg2 {[%emt 0:00:02]} Kg8 {[%emt 0:00:02]} 38. Qd2 {[%emt 0:00:02]} Kf7 {[%emt 0:00:02]} 39. Qa5 {[%emt 0:00:01]} Qd7 {[%emt 0:00:02]} 40. Qc5 {[%emt 0:00:01]} (40. Qc3 $11 {remains equal.}) 40... Kg6 {[%emt 0:00:01]} (40... e5 $17 41. Kh2 Kg6) 41. Qf8 {[%emt 0:00:02]} (41. f4 $1 $11) 41... e5 $1 $15 {[%emt 0:00:08]} 42. dxe5 $1 {[%emt 0:00:11]} fxe5 {[%emt 0:00:01]} 43. f4 $1 {[%emt 0:00:01]} exf4 {[%emt 0:00:01]} 44. gxf4 {[%emt 0:00:01]} d4 {[%emt 0:00:01]} (44... Qf7 $17 45. Qa8 d4 (45... Kxh6 46. Qxa4 Kg6 47. Qd4 $11) 46. Qc6+ Kh5 47. Qxa4 Qd5+ (47... Kxh6 48. Qxd4 Kg6 49. a4 $14) 48. Kf2 Kg4 (48... Kxh6 49. Qe8 $11) 49. Qd1+ Kxf4) 45. Kg3 $2 {[%emt 0:00:05]} (45. Qg8+ $11 Kf6 (45... Kxh6 46. Qg5#) 46. Kg3) 45... d3 $2 {[%emt 0:00:11]} (45... Qf7 $19 46. Qd8 Qf6 (46... Kxh6 47. Qg5#) 47. Qxc7 Kxh6) 46. Qg8+ $11 {[%emt 0:00:03]} Kf6 $1 {[%emt 0:00:01]} (46... Kxh6 47. Qg5#) 47. Qf8+ {[%emt 0:00:07]} (47. Qh8+ $11 Kg6 (47... Ke6 48. Qe5+ Kf7 49. Qg7+ Ke6 50. Qe5+ Kf7 51. Qg7+ Ke6 52. Qe5+ $11) 48. Qg8+ Kf6 (48... Kxh6 49. Qg5#) 49. Qh8+ Ke6 50. Qe5+ Kf7 51. Qg7+ Ke6 52. Qe5+ Kf7 53. Qg7+ Ke6 54. Qe5+) 47... Ke6 {[%emt 0:00:04]} ({Black should try} 47... Qf7 $1 $15 48. Qd8+ Qe7 49. Qxd3 Qe1+ 50. Kf3 Qh1+ 51. Ke3 Qg1+ (51... Qxh6 52. Qd8+ Kg6 53. Qe8+ Kg7 54. Qd7+ Kg8 55. Qe8+ Kg7 56. Qd7+ Kg8 57. Qxa4 $11) 52. Ke2 Qg4+ 53. Ke3 (53. Qf3 $2 Kg6 $19) 53... Qg3+ 54. Ke2 Qxf4) 48. Qg8+ $11 {[%emt 0:00:01]} Kd6 {[%emt 0:00:02]} 49. Qc4 $1 {[%emt 0:00:01]} d2 {[%emt 0:00:03]} 50. Qd3+ $2 {[%emt 0:00:08][%mdl 8192]} (50. Qd4+ $11 Kc6 51. Qxa4+ Kd6 52. Qd4+ Kc6 53. Qa4+ Kd6 54. Qd4+ Ke6 55. Qe5+ Kf7 56. Qg7+ Ke6 57. Qe5+ Kf7 58. Qg7+ Ke8 (58... Ke6 59. Qe5+ $11) 59. Qh8+ Ke7 60. Qxh7+ Kd6 61. Qxd7+ (61. Qg6+ $2 Kc5 $19) 61... Kxd7 62. h7) 50... Ke6 {[%emt 0:00:02]} 51. Qc4+ {[%emt 0:00:02]} Qd5 {[%emt 0:00:04]} 52. Qe2+ {[%emt 0:00:04]} 0-1

[Event "Polish University-ch Open 2024"]
[Site "Lublin"]
[Date "2024.02.23"]
[Round "2.10"]
[White "Molenda, Marcin"]
[Black "Maciejewski, Kamil"]
[Result "1/2-1/2"]
[ECO "B38"]
[WhiteElo "2377"]
[BlackElo "1949"]
[Annotator "RC"]
[PlyCount "129"]
[EventDate "2024.02.22"]
[EventType "swiss"]
[EventCountry "POL"]
[SourceTitle "playchess.com"]
[Source "ChessBase"]
[SourceQuality "1"]
[TimeControl "600+3"]

1. Nf3 {[%emt 0:00:02]} c5 {[%emt 0:00:08]} 2. e4 {[%emt 0:00:03]} g6 {[%emt 0:00:03]} 3. d4 {[%emt 0:00:06]} cxd4 {[%emt 0:00:02]} 4. Nxd4 {[%emt 0:00:01]} Bg7 {[%emt 0:00:07]} 5. c4 {[%emt 0:00:01]} Nc6 {[%emt 0:00:05]} 6. Be3 {[%emt 0:00:05]} Nf6 {[%emt 0:00:05]} 7. Nc3 {[%emt 0:00:01]} O-O {[%emt 0:00:38]} 8. f3 {[%emt 0:00:32]} d6 {[%emt 0:00:15]} 9. Qd2 {[%emt 0:00:20]} Bd7 {[%emt 0:01:00]} 10. Be2 {[%emt 0:00:04]} Nxd4 {[%emt 0:00:26]} 11. Bxd4 {[%emt 0:00:01]} Bc6 {[%emt 0:00:05]} 12. O-O {[%emt 0:00:09]} Nd7 {[%emt 0:00:11]} 13. Bf2 {[%emt 0:00:18]} a5 {[%emt 0:00:26]} 14. Rad1 {[%emt 0:00:30]} a4 {[%emt 0:00:43]} 15. Rfe1 {[%emt 0:00:05]} Qa5 {[%emt 0:00:27]} 16. Nd5 {[%emt 0:01:21]} Bxd5 {[%emt 0:01:15]} 17. Qxd5 {[%emt 0:00:54]} Qxd5 {[%emt 0:00:43]} 18. Rxd5 {[%emt 0:00:02]} Bxb2 {[%emt 0:02:28]} 19. Rb5 {[%emt 0:00:01]} Bf6 {[%emt 0:00:15]} 20. Rxb7 {[%emt 0:00:03]} Nc5 {[%emt 0:00:16]} 21. Rb5 {[%emt 0:00:05]} Rfc8 {[%emt 0:00:26]} 22. Rd1 {[%emt 0:00:03]} Rab8 {[%emt 0:00:23]} 23. Rdb1 {[%emt 0:01:13]} Ra8 {[%emt 0:00:08]} 24. g3 {[%emt 0:00:53]} a3 {[%emt 0:00:05]} 25. Rc1 {[%emt 0:01:21]} Na4 {[%emt 0:00:17]} 26. Rb3 {[%emt 0:00:32]} Nc5 {[%emt 0:00:11]} 27. Rb4 {[%emt 0:00:18]} Rab8 {[%emt 0:00:06]} 28. Rcb1 {[%emt 0:00:16]} Bb2 {[%emt 0:00:06]} 29. Rxb8 {[%emt 0:00:40]} Rxb8 {[%emt 0:00:01]} 30. Bd1 {[%emt 0:00:01]} Rb4 {[%emt 0:00:07]} 31. Kf1 {[%emt 0:00:22]} Rxc4 {[%emt 0:00:02]} 32. Ke2 {[%emt 0:00:02]} Rc1 {[%emt 0:00:04]} 33. Rxc1 {[%emt 0:00:02]} Bxc1 {[%emt 0:00:01]} 34. Bc2 {[%emt 0:00:16]} Kf8 {[%emt 0:00:04]} 35. h4 {[%emt 0:00:19]} h5 {[%emt 0:00:05]} 36. e5 {[%emt 0:00:07]} Bb2 {[%emt 0:00:02]} 37. exd6 {[%emt 0:00:01]} exd6 {[%emt 0:00:00]} 38. g4 {[%emt 0:00:01]} Bf6 {[%emt 0:00:06]} 39. Be1 {[%emt 0:00:13]} Ne6 {[%emt 0:00:03]} 40. Ke3 {[%emt 0:00:18]} Bb2 {[%emt 0:00:04]} 41. Bb4 {[%emt 0:00:07]} Ke7 {[%emt 0:00:03]} 42. Ke4 {[%emt 0:00:05]} Nc5+ {[%emt 0:00:02]} 43. Kd5 {[%emt 0:00:01]} Bc1 {[%emt 0:00:08]} 44. Bd1 {[%emt 0:00:10]} Bb2 {[%emt 0:00:00]} 45. gxh5 {[%emt 0:00:02]} gxh5 {[%emt 0:00:00]} 46. f4 {[%emt 0:00:00]} Bc1 {[%emt 0:00:03]} 47. Bxh5 {[%emt 0:00:06]} Bxf4 {[%emt 0:00:01]} 48. Bxa3 {[%emt 0:00:01]} Bg3 {[%emt 0:00:05]} 49. Be2 {[%emt 0:00:05]} Bxh4 {[%emt 0:00:03]} 50. Bb4 {[%emt 0:00:04]} Bf2 {[%emt 0:00:04]} 51. Bb5 {[%emt 0:00:04]} f5 {[%emt 0:00:04]} 52. a4 {[%emt 0:00:01]} Nxa4 {[%emt 0:00:02]} 53. Bxd6+ {[%emt 0:00:03]} Kf6 {[%emt 0:00:08]} 54. Bxa4 {[%emt 0:00:01]} Be1 {[%emt 0:00:00]} 55. Bc2 {[%emt 0:00:03]} Bf2 {[%emt 0:00:01]} 56. Bc7 {[%emt 0:00:01]} Be1 {[%emt 0:00:03]} 57. Bd8+ {[%emt 0:00:01]} Kf7 {[%emt 0:00:03]} 58. Bxf5 {[%emt 0:00:02]} Ke8 {[%emt 0:00:02]} 59. Bg5 {[%emt 0:00:02]} Kf7 {[%emt 0:00:03]} 60. Bd3 {[%emt 0:00:02]} Ba5 {[%emt 0:00:04]} 61. Ke5 {[%emt 0:00:01]} Bc3+ {[%emt 0:00:03]} 62. Kf5 {[%emt 0:00:01]} Bb2 {[%emt 0:00:03]} 63. Bc4+ {[%emt 0:00:01]} Kg7 {[%emt 0:00:02]} 64. Be7 {[%emt 0:00:05]} Bc3 {[%emt 0:00:04]} 65. Ke4 {[%emt 0:00:27]} 1/2-1/2